lending/lending_fUSD_20250303
["ID","MTS","AMOUNT","RATE_DAILY","PERIOD"]
[355204913,1741007449140,-500.0,0.00014886,2]
[355204914,1741007449149,-502.45622114,0.00014886,2]
[355204915,1741007449159,-500.0,0.00014886,2]
[355204916,1741007449169,-500.0,0.00014886,2]
[355204917,1741007449180,-500.0,0.00014886,2]
[355204918,1741007449189,-500.0,0.00014886,2]
[355204919,1741007449199,-524.8706757,0.00014886,2]
[355204920,1741007449209,-500.0,0.00014886,2]
[355204921,1741007449219,-500.0,0.00014886,2]
[355204922,1741007449229,-500.0,0.00014886,2]
[355204923,1741007449238,-500.0,0.00014886,2]
[355204924,1741007449248,-500.0,0.00014886,2]
[355204925,1741007449258,-500.0,0.00014886,2]
[355204926,1741007449267,-500.0,0.00014886,2]
[355204927,1741007449277,-506.50290105,0.00014886,2]
[355204928,1741007449287,-500.0,0.00014886,2]
[355204929,1741007449297,-500.0,0.00014886,2]
[355204930,1741007449306,-582.96,0.00014886,2]
[355204931,1741007449316,-500.0,0.00014886,2]
[355204932,1741007449326,-500.0,0.00014886,2]
[355204933,1741007449337,-608.2023768,0.00014886,2]
[355204934,1741007449347,-500.0,0.00014886,2]
[355204935,1741007449358,-500.0,0.00014886,2]
[355204936,1741007449367,-518.57679932,0.00014886,2]
[355204937,1741007449377,-500.0,0.00014886,2]
[355204938,1741007449386,-500.0,0.00014886,2]
[355204939,1741007449396,-514.78787588,0.00014886,2]
[355204940,1741007449406,-500.0,0.00014886,2]
[355204941,1741007449416,-500.0,0.00014886,2]
[355204942,1741007449425,-500.0,0.00014886,2]
[355204943,1741007449435,-500.0,0.00014886,2]
[355204944,1741007449445,-500.0,0.00014886,2]
[355204945,1741007449454,-497.27753982,0.00014886,2]
[355204946,1741007449465,-500.0,0.00014886,2]
[355204947,1741007449475,-500.0,0.00014886,2]
[355204948,1741007449485,-500.0,0.00014886,2]
[355204949,1741007449495,-500.0,0.00014886,2]
[355204950,1741007449505,-500.0,0.00014886,2]
[355204951,1741007449514,-183.51615768,0.00014886,2]
[355204952,1741007449524,-500.0,0.00014886,2]
[355204953,1741007449533,-500.0,0.00014886,2]
[355204954,1741007449543,-500.0,0.00014886,2]
[355204955,1741007449552,-500.0,0.00014886,2]
[355204956,1741007449561,-501.07867,0.00014886,2]
[355204957,1741007449571,-500.0,0.00014886,2]
[355204958,1741007449580,-500.0,0.00014886,2]
[355204959,1741007449589,-500.0,0.00014886,2]
[355204960,1741007449599,-500.0,0.00014886,2]
[355204961,1741007449609,-500.0,0.00014886,2]
[355204962,1741007449619,-500.0,0.00014886,2]
[355204963,1741007449628,-513.16213411,0.00014886,2]
[355204964,1741007449638,-500.0,0.00014886,2]
[355204965,1741007449647,-511.22289555,0.00014886,2]
[355204966,1741007449657,-688.98,0.00014886,2]
[355204967,1741007449666,-500.0,0.00014886,2]
[355204968,1741007449676,-500.0,0.00014886,2]
[355204969,1741007449685,-500.0,0.00014886,2]
[355204970,1741007449694,-500.0,0.00014886,2]
[355204971,1741007449703,-500.0,0.00014886,2]
[355204972,1741007449712,-500.0,0.00014886,2]
[355204973,1741007449723,-511.08177513,0.00014886,2]
[355204974,1741007449732,-179.0303579,0.00014886,2]
[355204975,1741007449741,-500.0,0.00014886,2]
[355204976,1741007449751,-500.0,0.00014886,2]
[355204977,1741007449759,-500.0,0.00014886,2]
[355204978,1741007449769,-500.0,0.00014886,2]
[355204979,1741007449778,-500.0,0.00014886,2]
[355204980,1741007449790,-500.0,0.00014886,2]
[355204981,1741007449800,-500.0,0.00014886,2]
[355204982,1741007449810,-500.0,0.00014886,2]
[355204983,1741007449819,-500.0,0.00014886,2]
[355204984,1741007449829,-500.0,0.00014886,2]
[355204985,1741007449839,-641.88344833,0.00014886,2]
[355204986,1741007449848,-500.0,0.00014886,2]
[355204987,1741007449857,-500.0,0.00014886,2]
[355204988,1741007449866,-500.0,0.00014886,2]
[355204989,1741007449876,-500.0,0.00014886,2]
[355204990,1741007449888,-500.0,0.00014886,2]
[355204991,1741007449897,-500.0,0.00014886,2]
[355204992,1741007449907,-500.0,0.00014886,2]
[355204993,1741007449916,-6325.93,0.00014886,2]
[355204994,1741007449925,-500.0,0.00014886,2]
[355204995,1741007449935,-500.0,0.00014886,2]
[355204996,1741007449944,-514.8738058,0.00014886,2]
[355204997,1741007449954,-500.0,0.00014886,2]
[355204998,1741007449964,-500.0,0.00014886,2]
[355204999,1741007449974,-500.0,0.00014886,2]
[355205000,1741007449984,-2015.82,0.00014886,2]
[355205001,1741007449994,-500.0,0.00014886,2]
[355205002,1741007450003,-500.0,0.00014886,2]
[355205003,1741007450013,-500.0,0.00014886,2]
[355205004,1741007450022,-500.0,0.00014886,2]
[355205005,1741007450031,-500.0,0.00014886,2]
[355205006,1741007450041,-283.52987887,0.00014886,2]
[355205007,1741007450050,-500.0,0.00014886,2]
[355205008,1741007450060,-500.0,0.00014886,2]
[355205009,1741007450069,-500.0,0.00014886,2]
[355205010,1741007450078,-509.94682877,0.00014886,2]
[355205011,1741007450087,-500.0,0.00014886,2]
[355205012,1741007450097,-500.0,0.00014886,2]
[355205013,1741007450106,-500.0,0.00014886,2]
[355205014,1741007450116,-500.0,0.00014886,2]
[355205015,1741007450125,-4350.71,0.00014886,2]
[355205016,1741007450134,-500.0,0.00014886,2]
[355205017,1741007450144,-500.0,0.00014886,2]
[355205018,1741007450153,-500.0,0.00014886,2]
[355205019,1741007450163,-295.28214073,0.00014886,2]
[355205020,1741007450172,-1107.29,0.00014886,2]
[355205021,1741007450182,-500.0,0.00014886,2]
[355205022,1741007450191,-500.0,0.00014886,2]
[355205023,1741007450201,-500.0,0.00014886,2]
[355205024,1741007450211,-1958.27,0.00014886,2]
[355205025,1741007450223,-500.0,0.00014886,2]
[355205026,1741007450232,-500.0,0.00014886,2]
[355205027,1741007450243,-500.0,0.00014886,2]
[355205028,1741007450253,-351.11163334,0.00014886,2]
[355205029,1741007450263,-500.0,0.00014886,2]
[355205030,1741007450272,-500.0,0.00014886,2]
[355205031,1741007450282,-500.0,0.00014886,2]
[355205032,1741007450292,-500.0,0.00014886,2]
[355205033,1741007450302,-500.0,0.00014886,2]
[355205034,1741007450313,-500.0,0.00014886,2]
[355205035,1741007450323,-631.81,0.00014886,2]
[355205036,1741007450332,-1729.5,0.00014886,2]
[355205037,1741007450342,-500.0,0.00014886,2]
[355205038,1741007450351,-500.0,0.00014886,2]
[355205039,1741007450361,-500.0,0.00014886,2]
[355205040,1741007450371,-500.0,0.00014886,2]
[355205041,1741007450380,-500.0,0.00014886,2]
[355205042,1741007450389,-500.0,0.00014886,2]
[355205043,1741007450399,-500.0,0.00014886,2]
[355205044,1741007450408,-500.0,0.00014886,2]
[355205045,1741007450417,-500.0,0.00014886,2]
[355205046,1741007450427,-500.0,0.00014886,2]
[355205047,1741007450437,-500.0,0.00014886,2]
[355205048,1741007450446,-561.04270112,0.00014886,2]
[355205049,1741007450456,-506.47588229,0.00014886,2]
[355205050,1741007450465,-500.0,0.00014886,2]
[355205051,1741007450475,-500.0,0.00014886,2]
[355205052,1741007450484,-500.0,0.00014886,2]
[355205053,1741007450493,-500.0,0.00014886,2]
[355205054,1741007450503,-500.0,0.00014886,2]
[355205055,1741007450513,-500.0,0.00014886,2]
[355205056,1741007450613,-500.0,0.00014886,2]
[355205057,1741007450633,-500.0,0.00014886,2]
[355205058,1741007450643,-500.0,0.00014886,2]
[355205059,1741007450653,-500.0,0.00014886,2]
[355205060,1741007450662,-500.0,0.00014886,2]
[355205061,1741007450672,-500.0,0.00014886,2]
[355205062,1741007450681,-500.0,0.00014886,2]
[355205063,1741007450690,-508.10876426,0.00014886,2]
[355205064,1741007450700,-500.0,0.00014886,2]
[355205065,1741007450710,-634.43,0.00014886,2]
[355205066,1741007450721,-500.0,0.00014886,2]
[355205067,1741007450730,-500.0,0.00014886,2]
[355205068,1741007450740,-500.0,0.00014886,2]
[355205069,1741007450749,-500.0,0.00014886,2]
[355205070,1741007450759,-500.0,0.00014886,2]
[355205071,1741007450769,-500.0,0.00014886,2]
[355205072,1741007450779,-500.0,0.00014886,2]
[355205073,1741007450789,-500.0,0.00014886,2]
[355205074,1741007450803,-500.0,0.00014886,2]
[355205075,1741007450812,-500.0,0.00014886,2]
[355205076,1741007450822,-500.0,0.00014886,2]
[355205077,1741007450831,-500.0,0.00014886,2]
[355205078,1741007450840,-520.97687334,0.00014886,2]
[355205079,1741007450850,-500.0,0.00014886,2]
[355205080,1741007450859,-500.0,0.00014886,2]
[355205081,1741007450871,-500.0,0.00014886,2]
[355205082,1741007450880,-500.0,0.00014886,2]
[355205083,1741007450889,-500.0,0.00014886,2]
[355205084,1741007450899,-5241.66622463,0.00014887,2]
[355205085,1741007450909,-2469.33365881,0.00014887,2]
[355205086,1741007450919,-500.0,0.00014898,2]
[355205087,1741007450928,-500.0,0.00014898,2]
[355205088,1741007450938,-1415.65,0.00014898,2]
[355205089,1741007450948,-23704.03,0.00014898,2]
[355205090,1741007450958,-564.72,0.00014898,2]
[355205091,1741007450969,-1194.75,0.00014898,2]
[355205092,1741007450979,-500.0,0.00014898,2]
[355205093,1741007450988,-25519.99,0.00014898,2]
[355205094,1741007450998,-500.0,0.00014898,2]
[355205095,1741007451007,-1608.75,0.00014898,2]
[355205096,1741007451017,-500.0,0.00014898,2]
[355205097,1741007451027,-500.0,0.00014898,2]
[355205098,1741007451036,-2426.29,0.00014898,2]
[355205099,1741007451046,-1000.0,0.00014898,2]
[355205100,1741007451055,-9535.93,0.00014898,2]
[355205101,1741007451065,-1306.4,0.00014898,2]
[355205102,1741007451074,-863.53,0.00014898,2]
[355205103,1741007451084,-689.49,0.00014898,2]
[355205104,1741007451093,-500.0,0.00014898,2]
[355205105,1741007451103,-1667.34,0.00014898,2]
[355205106,1741007451112,-7617.9,0.00014898,2]
[355205107,1741007451121,-1098.44,0.00014898,2]
[355205108,1741007451131,-796.1968,0.000149,2]
[355205109,1741007451140,-3010.833224,0.000149,2]
[355205110,1741007451149,-561.1655113,0.000149,2]
[355205111,1741007451159,-5241.66622463,0.000149,2]
[355205112,1741007451168,-185.4171467,0.000149,2]
[355205113,1741007451177,-395.39606468,0.000149,2]
[355205114,1741007451187,-2469.33365881,0.000149,2]
[355205115,1741007451196,-3928.0,0.00014901,2]
[355205116,1741007451206,-150.0,0.00014901,2]
[355205117,1741007451216,-1011.0,0.00014901,2]
[355205118,1741007451225,-242.73,0.00014917,2]
[355205119,1741007451235,-950.38887,0.0001494,2]
[355205120,1741007451245,-150.0,0.00014958,2]
[355205121,1741007451255,-150.0,0.00014958,2]
[355205122,1741007451265,-160.2091181,0.00014973,2]
[355205123,1741007451274,-503.4266169,0.00014973,2]
[355205124,1741007451283,-271.8316147,0.00014973,2]
[355205125,1741007451293,-301.09046001,0.00014973,2]
[355205126,1741007451302,-161.91903735,0.00014973,2]
[355205127,1741007451312,-5116.8891094,0.00014994,2]
[355205128,1741007451322,-696.6262519,0.00014994,2]
[355205129,1741007451331,-242.73,0.00014998,2]
[355205130,1741007451341,-500.0,0.00014999,2]
[355205131,1741007451350,-502.88821685,0.00014999,2]
[355205132,1741007451359,-502.09316743,0.00014999,2]
[355205133,1741007451369,-500.0,0.00014999,2]
[355205134,1741007451378,-500.0,0.00014999,2]
[355205135,1741007451388,-500.0,0.00014999,2]
[355205136,1741007451398,-396.48891798,0.00014999,2]
[355205137,1741007451407,-557.29714284,0.00014999,2]
[355205138,1741007451417,-500.0,0.00014999,2]
[355205139,1741007451426,-500.0,0.00014999,2]
[355205140,1741007451436,-503.0616908,0.00014999,2]
[355205141,1741007451445,-500.0,0.00014999,2]
[355205142,1741007451455,-194.87515399,0.00014999,2]
[355205143,1741007451465,-500.0,0.00014999,2]
[355205144,1741007451474,-500.0,0.00014999,2]
[355205145,1741007451483,-245.21676077,0.00014999,2]
[355205146,1741007451493,-500.0,0.00014999,2]
[355205147,1741007451502,-312.24511079,0.00014999,2]
[355205148,1741007451512,-378.19648185,0.00014999,2]
[355205149,1741007451521,-500.0,0.00014999,2]
[355205150,1741007451531,-500.0,0.00014999,2]
[355205151,1741007451540,-500.0,0.00014999,2]
[355205152,1741007451550,-420.32741824,0.00014999,2]
[355205153,1741007451559,-508.14325975,0.00014999,2]
[355205154,1741007451569,-505.59704104,0.00014999,2]
[355205155,1741007451578,-500.0,0.00014999,2]
[355205156,1741007451588,-500.0,0.00014999,2]
[355205157,1741007451597,-524.54921722,0.00014999,2]
[355205158,1741007451606,-500.0,0.00014999,2]
[355205159,1741007451616,-500.0,0.00014999,2]
[355205160,1741007451626,-500.0,0.00014999,2]
[355205161,1741007451635,-500.0,0.00014999,2]
[355205162,1741007451645,-742.53,0.00014999,2]
[355205163,1741007451654,-812.0,0.00014999,2]
[355205164,1741007451664,-414553.01332152,0.00015,2]
[355205165,1741007451674,-42297.35069782,0.00015,2]
[355205166,1741007451684,-610729.57800372,0.00015,2]
[355205167,1741007451694,-1351002.23893721,0.00015,2]
[355205168,1741007451703,-394963.17332542,0.00015,2]
[355205169,1741007451713,-902338.05295035,0.00015,2]
[355205170,1741007452168,-615.286,0.00015,2]
[355205171,1741007452180,-2558.80702484,0.00015,2]
[355205172,1741007452191,-483.49461847,0.00015,2]
[355205173,1741007452203,-275.49850003,0.00015,2]
[355205174,1741007452214,-87696.89923061,0.00015,2]
[355205175,1741007452241,-1455.714,0.00015,2]
[355205176,1741007452899,-500.0,0.00014881,2]
[355205177,1741007452914,-481.44104014,0.00014882,2]
[355205178,1741007452935,-18.55895986,0.00014882,2]
[355205179,1741007452951,-516.04183224,0.00014882,2]
[355205180,1741007452968,-2581.05092912,0.00015,2]
[355205181,1741007452986,-728256.13596569,0.00015,2]
[355205182,1741007453022,-311.308985,0.00015,2]
[355205183,1741007453060,-2605.68934171,0.00015,2]
[355205184,1741007453749,-421.8590181,0.00014881,2]
[355205185,1741007453760,-78.1409819,0.00014881,2]
[355205186,1741007453770,-433.1375381,0.00014882,2]
[355205187,1741007453792,-66.8624619,0.00014882,2]
[355205188,1741007453807,-500.0,0.00014886,2]
[355205189,1741007453816,-366.4875381,0.00014946,2]
[355205190,1741007521499,200.0,0.00014104,2]
[355205191,1741007549760,23900.0,0.0001407,2]
[355205192,1741007557967,168.91,0.0001407,2]
[355205193,1741007579049,787.61,0.0001407,2]
[355205194,1741007672001,2000.0,0.0001407,2]
[355205195,1741007693194,1067.92406095,0.000145,2]
[355205196,1741007790845,175.4,0.00014066,2]
[355205197,1741007945334,1000.0,0.00014046,2]
[355205198,1741008235775,216.77,0.00014002,2]
[355205199,1741008249314,5380.04,0.00013992,2]
[355205200,1741008276903,250.0,0.00013992,2]
[355205201,1741008304230,182.35,0.00013992,2]
[355205202,1741008325719,169.71,0.00014412,2]
[355205206,1741008484396,250.0,0.00013,2]
[355205209,1741008505160,1269.54,0.00011997,2]
[355205210,1741008505352,1269.54,0.00014261,2]
[355205219,1741008546947,174.58,0.00013926,2]
[355205220,1741008551744,23900.0,0.00013926,2]
[355205224,1741008569297,159.63,0.00013932,2]
[355205237,1741008631787,-1000.0,0.000146,2]
[355205238,1741008631797,-405.0600491,0.00014635,2]
[355205239,1741008631807,-550.0,0.00014645,2]
[355205240,1741008631817,-150.0,0.00014656,2]
[355205241,1741008631827,-582.51660474,0.00014681,2]
[355205242,1741008631837,-182.35,0.00014692,2]
[355205243,1741008631846,-913.93513231,0.000147,2]
[355205244,1741008631856,-1000.0,0.0001477,2]
[355205245,1741008631866,-300.0,0.00014779,2]
[355205246,1741008631875,-582.51660474,0.0001478,2]
[355205247,1741008631886,-299.99,0.0001478,2]
[355205248,1741008631896,-6122.22,0.0001478,2]
[355205249,1741008631906,-150.99,0.0001478,2]
[355205250,1741008631916,-267.08,0.0001478,2]
[355205251,1741008631926,-999.99,0.0001478,2]
[355205252,1741008631935,-2185.2607,0.00014781,2]
[355205253,1741008631945,-905.95277122,0.00014781,2]
[355205254,1741008631958,-6882.15152878,0.00014781,2]
[355205255,1741008631969,-5000.0,0.00014781,2]
[355205256,1741008631982,-400.7729,0.00014782,2]
[355205257,1741008631993,-803.20037002,0.00014787,2]
[355205258,1741008632037,-312.49619502,0.00014787,2]
[355205287,1741008637745,-4158.83488758,0.00014787,2]
[355205288,1741008637756,-1000.0,0.000148,2]
[355205289,1741008637766,-490.22735,0.0001485,2]
[355205290,1741008637776,-351.48093739,0.00014873,2]
[355205291,1741008637786,-500.0,0.00014873,2]
[355205292,1741008637796,-500.0,0.00014879,2]
[355205293,1741008637806,-500.0,0.00014879,2]
[355205294,1741008637816,-500.0,0.00014879,2]
[355205295,1741008637826,-500.0,0.00014879,2]
[355205296,1741008637836,-500.0,0.00014879,2]
[355205297,1741008637846,-500.0,0.00014879,2]
[355205298,1741008637855,-500.0,0.00014879,2]
[355205299,1741008637865,-500.0,0.00014879,2]
[355205300,1741008637875,-587.7,0.00014879,2]
[355205301,1741008637885,-500.0,0.00014879,2]
[355205302,1741008637895,-500.0,0.00014879,2]
[355205303,1741008637905,-514.1463004,0.00014879,2]
[355205304,1741008637914,-500.0,0.00014879,2]
[355205305,1741008637923,-500.0,0.00014879,2]
[355205306,1741008637933,-679.81,0.00014879,2]
[355205307,1741008637942,-500.0,0.00014879,2]
[355205308,1741008637951,-279.1755607,0.00014879,2]
[355205309,1741008637960,-500.0,0.00014879,2]
[355205310,1741008637970,-466.84518517,0.00014879,2]
[355205311,1741008637979,-500.0,0.00014879,2]
[355205312,1741008637988,-701.51,0.00014879,2]
[355205313,1741008637998,-500.0,0.00014879,2]
[355205314,1741008638007,-500.0,0.00014879,2]
[355205315,1741008638017,-500.0,0.0001488,2]
[355205316,1741008638026,-501.97364501,0.0001488,2]
[355205317,1741008638036,-500.0,0.0001488,2]
[355205318,1741008638046,-500.0,0.0001488,2]
[355205319,1741008638055,-500.0,0.0001488,2]
[355205320,1741008638065,-500.0,0.0001488,2]
[355205321,1741008638075,-500.0,0.0001488,2]
[355205322,1741008638084,-506.78234693,0.0001488,2]
[355205323,1741008638094,-500.0,0.0001488,2]
[355205324,1741008638104,-500.0,0.0001488,2]
[355205326,1741008638113,-525.24026944,0.0001488,2]
[355205328,1741008638123,-500.0,0.0001488,2]
[355205330,1741008638132,-500.0,0.0001488,2]
[355205332,1741008638142,-500.0,0.0001488,2]
[355205334,1741008638151,-500.0,0.0001488,2]
[355205336,1741008638161,-500.0,0.0001488,2]
[355205338,1741008638171,-500.0,0.0001488,2]
[355205340,1741008638180,-500.0,0.0001488,2]
[355205342,1741008638191,-500.0,0.0001488,2]
[355205345,1741008638201,-877.46,0.0001488,2]
[355205347,1741008638211,-500.0,0.0001488,2]
[355205350,1741008638220,-500.0,0.0001488,2]
[355205353,1741008638231,-500.0,0.0001488,2]
[355205356,1741008638240,-500.0,0.0001488,2]
[355205359,1741008638250,-500.0,0.0001488,2]
[355205361,1741008638259,-500.0,0.0001488,2]
[355205363,1741008638272,-500.0,0.0001488,2]
[355205365,1741008638281,-500.0,0.0001488,2]
[355205367,1741008638291,-554.44,0.0001488,2]
[355205369,1741008638300,-500.0,0.0001488,2]
[355205371,1741008638310,-500.0,0.0001488,2]
[355205373,1741008638319,-563.24565424,0.0001488,2]
[355205376,1741008638338,-500.0,0.0001488,2]
[355205378,1741008638349,-500.0,0.0001488,2]
[355205380,1741008638359,-500.0,0.0001488,2]
[355205382,1741008638370,-500.0,0.0001488,2]
[355205384,1741008638380,-508.87004952,0.0001488,2]
[355205386,1741008638390,-500.0,0.0001488,2]
[355205389,1741008638400,-500.0,0.0001488,2]
[355205391,1741008638409,-510.35024421,0.0001488,2]
[355205393,1741008638420,-611.15,0.0001488,2]
[355205395,1741008638430,-500.0,0.0001488,2]
[355205397,1741008638440,-500.0,0.0001488,2]
[355205399,1741008638449,-500.0,0.0001488,2]
[355205401,1741008638459,-500.0,0.0001488,2]
[355205402,1741008638468,-500.0,0.0001488,2]
[355205405,1741008638478,-500.0,0.0001488,2]
[355205406,1741008638487,-500.0,0.0001488,2]
[355205409,1741008638497,-500.0,0.0001488,2]
[355205411,1741008638507,-507.6514022,0.0001488,2]
[355205413,1741008638519,-512.67641829,0.0001488,2]
[355205414,1741008638529,-500.0,0.0001488,2]
[355205416,1741008638539,-500.0,0.0001488,2]
[355205417,1741008638549,-500.0,0.0001488,2]
[355205418,1741008638559,-500.0,0.0001488,2]
[355205419,1741008638568,-500.0,0.0001488,2]
[355205420,1741008638578,-500.0,0.0001488,2]
[355205421,1741008638589,-517.18603955,0.0001488,2]
[355205422,1741008638600,-500.0,0.0001488,2]
[355205423,1741008638610,-587.47,0.0001488,2]
[355205424,1741008638619,-501.49419559,0.0001488,2]
[355205425,1741008638629,-500.0,0.0001488,2]
[355205426,1741008638640,-500.0,0.0001488,2]
[355205427,1741008638649,-500.0,0.0001488,2]
[355205428,1741008638659,-500.0,0.0001488,2]
[355205429,1741008638668,-500.0,0.0001488,2]
[355205430,1741008638678,-500.0,0.0001488,2]
[355205431,1741008638687,-265.93522699,0.0001488,2]
[355205432,1741008638698,-500.0,0.0001488,2]
[355205433,1741008638708,-500.0,0.0001488,2]
[355205434,1741008638717,-504.82775614,0.0001488,2]
[355205435,1741008638727,-500.0,0.0001488,2]
[355205436,1741008638737,-508.63664661,0.0001488,2]
[355205437,1741008638746,-500.0,0.0001488,2]
[355205438,1741008638756,-2179.89,0.0001488,2]
[355205439,1741008638765,-500.0,0.0001488,2]
[355205440,1741008638776,-501.30663134,0.0001488,2]
[355205441,1741008638785,-731.68,0.0001488,2]
[355205442,1741008638795,-1391.30951,0.0001488,2]
[355205443,1741008638805,-242.43849547,0.0001488,2]
[355205444,1741008638815,-500.0,0.0001488,2]
[355205445,1741008638825,-500.0,0.0001488,2]
[355205446,1741008638835,-499.99977863,0.0001488,2]
[355205447,1741008638845,-505.46203294,0.0001488,2]
[355205448,1741008638854,-500.0,0.0001488,2]
[355205449,1741008638863,-500.0,0.0001488,2]
[355205450,1741008638873,-500.0,0.0001488,2]
[355205451,1741008638883,-500.0,0.0001488,2]
[355205452,1741008638894,-1887.746534,0.0001488,2]
[355205453,1741008638903,-500.0,0.0001488,2]
[355205454,1741008638913,-500.0,0.0001488,2]
[355205455,1741008638923,-500.0,0.0001488,2]
[355205456,1741008638932,-500.0,0.0001488,2]
[355205457,1741008638942,-743.28,0.0001488,2]
[355205458,1741008638952,-153.607479,0.0001488,2]
[355205459,1741008638962,-500.0,0.0001488,2]
[355205460,1741008638972,-337.44882049,0.0001488,2]
[355205470,1741008639671,-318.06763194,0.00014781,2]
[355205471,1741008639681,-174.44810865,0.0001488,2]
[355205472,1741008639692,-150.369306,0.0001488,2]
[355205473,1741008639702,-522.70466171,0.0001488,2]
[355205474,1741008639712,-511.17627733,0.0001488,2]
[355205475,1741008639721,-500.0,0.0001488,2]
[355205476,1741008639731,-500.0,0.0001488,2]
[355205477,1741008639742,-504.58330456,0.0001488,2]
[355205478,1741008639751,-500.0,0.0001488,2]
[355205479,1741008639761,-500.0,0.0001488,2]
[355205480,1741008639772,-500.0,0.0001488,2]
[355205481,1741008639782,-500.0,0.0001488,2]
[355205482,1741008639791,-451.7805767,0.0001488,2]
[355205483,1741008639801,-527.12314029,0.0001488,2]
[355205484,1741008639811,-500.0,0.0001488,2]
[355205485,1741008639821,-500.0,0.0001488,2]
[355205486,1741008639831,-500.0,0.0001488,2]
[355205487,1741008639840,-500.0,0.0001488,2]
[355205488,1741008639850,-500.0,0.0001488,2]
[355205489,1741008639859,-500.0,0.0001488,2]
[355205490,1741008639869,-500.0,0.0001488,2]
[355205491,1741008639879,-500.0,0.0001488,2]
[355205492,1741008639888,-2515.21,0.0001488,2]
[355205493,1741008639898,-509.14438422,0.0001488,2]
[355205494,1741008639907,-500.0,0.0001488,2]
[355205495,1741008639917,-500.0,0.0001488,2]
[355205496,1741008639926,-500.0,0.0001488,2]
[355205497,1741008639935,-500.0,0.0001488,2]
[355205498,1741008639944,-555.95,0.0001488,2]
[355205499,1741008639954,-500.0,0.0001488,2]
[355205500,1741008639964,-500.0,0.0001488,2]
[355205501,1741008639974,-563.23,0.0001488,2]
[355205502,1741008639983,-411.99302624,0.0001488,2]
[355205503,1741008639993,-591.01,0.0001488,2]
[355205504,1741008640003,-436.58792143,0.0001488,2]
[355205505,1741008640012,-500.0,0.0001488,2]
[355205506,1741008640025,-500.0,0.0001488,2]
[355205507,1741008640035,-509.68529075,0.0001488,2]
[355205508,1741008640045,-500.0,0.0001488,2]
[355205509,1741008640055,-500.0,0.0001488,2]
[355205510,1741008640065,-517.13201734,0.0001488,2]
[355205511,1741008640074,-584.35281283,0.0001488,2]
[355205512,1741008640084,-500.0,0.0001488,2]
[355205513,1741008640095,-500.0,0.0001488,2]
[355205514,1741008640105,-541.52,0.0001488,2]
[355205515,1741008640115,-500.0,0.0001488,2]
[355205516,1741008640125,-911.82,0.0001488,2]
[355205517,1741008640135,-500.0,0.0001488,2]
[355205518,1741008640147,-636.76095731,0.0001488,2]
[355205519,1741008640159,-289.0168431,0.0001488,2]
[355205520,1741008640170,-500.0,0.0001488,2]
[355205521,1741008640181,-599.03,0.0001488,2]
[355205522,1741008640195,-500.0,0.0001488,2]
[355205523,1741008640208,-500.0,0.0001488,2]
[355205524,1741008640220,-343.65679705,0.0001488,2]
[355205525,1741008640232,-712.45,0.0001488,2]
[355205526,1741008640245,-500.0,0.0001488,2]